bitfinex/quotes_SOLUSD_20240808
["timestamp","ask_amount","ask_price","bid_price","bid_amount"]
[1723120900435,81.39,157.09,156.88,0.3050776]
[1723120900436,43.21,157.05,156.88,0.3050776]
[1723120900623,48.16054632,157.07,156.88,0.3050776]
[1723120900934,43.21,157.09,156.88,0.3050776]
[1723120900935,6.366,157.09,156.9,20.0]
[1723120901135,9.98003808,157.08,156.9,20.0]
[1723120901341,16.34633808,157.08,156.91,20.0]
[1723120901511,1.10872235,157.07,156.91,20.0]
[1723120901821,1.10872235,157.07,157.01,6.3689]
[1723120902006,1.10872235,157.07,157.05,6.3673]
[1723120902207,9.98003808,157.08,157.05,6.3673]
[1723120902406,6.3655,157.1,156.91,20.0]
[1723120902625,1.10862304,157.07,156.89,20.0]
[1723120902842,48.15813651,157.11,156.89,20.0]
[1723120903045,48.15813651,157.11,156.88,0.3050776]
[1723120903046,1.10888913,157.06,156.99,6.3698]
[1723120903340,1.10888913,157.06,156.98,6.3701]
[1723120903341,6.3673,157.06,156.98,6.3701]
[1723120903511,46.44892966,157.05,156.99,6.3696]
[1723120903712,52.81642966,157.05,156.98,6.3701]
[1723120903953,43.21,157.0,156.93,6.3721]
[1723120904439,45.17,156.99,156.95,6.3711]
[1723120904607,45.0,156.99,156.95,6.3714]
[1723120904810,45.0,156.99,156.88,0.3050776]
[1723120905440,43.21,156.97,156.88,0.3050776]
[1723120905622,45.0,156.96,156.83,0.8996352]
[1723120905927,0.34,156.95,156.83,0.8996352]
[1723120908644,0.17,156.95,156.83,0.8996352]
[1723120908937,0.17,156.96,156.83,0.8996352]
[1723120909808,45.17,156.96,156.83,0.8996352]
[1723120910013,0.17,156.95,156.83,0.8996352]
[1723120910622,43.21,156.97,156.83,0.8996352]
[1723120911913,0.17,156.96,156.83,0.8996352]
[1723120912144,43.21,156.95,156.83,0.8996352]
[1723120912311,0.17,156.94,156.83,0.8996352]
[1723120913240,15.36784469,157.1,156.83,0.8996352]
[1723120913241,43.21,156.99,156.83,0.8996352]
[1723120913539,6.3705,156.98,156.83,20.8996352]
[1723120913747,49.5798,156.99,156.83,20.8996352]
[1723120914149,49.5798,156.99,156.83,0.8996352]
[1723120914150,43.21,156.95,156.83,0.8996352]
[1723120914453,0.17,156.94,156.83,0.8996352]
[1723120914619,45.17,156.94,156.83,0.8996352]
[1723120914812,45.0,156.94,156.83,0.8996352]
[1723120915234,0.17,156.93,156.83,0.8996352]
[1723120916140,43.21,156.95,156.83,0.8996352]
[1723120916349,43.21,156.99,156.83,0.8996352]
[1723120916546,81.39,156.99,156.83,0.8996352]
[1723120916921,6.3714,156.96,156.83,0.8996352]
[1723120917254,66.08840584,157.04,156.83,0.8996352]
[1723120917255,43.21,156.95,156.83,0.8996352]
[1723120917428,43.21,156.95,156.82,31.9913]
[1723120917627,43.21,156.96,156.82,31.9913]
[1723120917628,45.34,156.94,156.82,31.9913]
[1723120917932,45.17,156.93,156.82,31.9913]
[1723120918126,0.17,156.92,156.82,31.9913]
[1723120918328,0.17,156.94,156.82,31.9913]
[1723120920532,43.21,156.96,156.82,31.9913]
[1723120920731,43.21,156.96,156.83,20.0]
[1723120920947,43.21,157.0,156.84,13.1554]
[1723120921154,43.21,157.04,156.84,13.1554]
[1723120921488,15.9219,157.02,156.82,31.9913]
[1723120921760,43.21,156.95,156.82,31.9913]
[1723120922129,43.21,156.95,156.75,33.14054847]
[1723120922356,0.34,156.94,156.75,30.5869]
[1723120923869,1.27975496,156.93,156.75,30.5869]
[1723120924075,0.17,156.92,156.75,30.5869]
[1723120924256,0.34,156.92,156.75,30.5869]
[1723120924456,1.10975496,156.93,156.77,13.3027]
[1723120924776,1.1094153,156.92,156.77,13.3027]
[1723120924953,44.3194153,156.92,156.77,13.3027]
[1723120925148,1.1094153,156.92,156.77,13.3027]
[1723120925754,12.9098,157.06,156.77,13.3027]
[1723120925755,43.21,157.04,156.77,13.3027]
[1723120925975,38.18,157.03,156.77,14.57788744]
[1723120926193,7.94416176,157.09,156.85,12.5092]
[1723120926502,43.21,157.02,156.85,12.5092]
[1723120926676,6.3698,156.99,156.85,12.5092]
[1723120926887,43.21,157.02,156.85,12.5092]
[1723120927177,38.18,156.99,156.85,12.5092]
[1723120927380,44.5499,156.99,156.85,12.5092]
[1723120927562,45.17,156.98,156.85,12.5092]
[1723120927955,83.35,156.98,156.85,12.5092]
[1723120928151,6.3706,156.97,156.85,12.5092]
[1723120928359,45.17,156.96,156.85,12.5092]
[1723120928878,38.35,156.96,156.85,12.5092]
[1723120929056,38.18,156.94,156.85,12.5092]
[1723120929259,38.18,156.92,156.81,31.139]
[1723120929460,0.34,156.91,156.81,31.139]
[1723120929779,38.18,156.9,156.81,31.139]
[1723120929972,83.52,156.89,156.81,31.139]
[1723120930171,83.18,156.91,156.81,31.139]
[1723120931582,0.34,156.9,156.81,31.139]
[1723120931772,0.34,156.9,156.81,26.9945498]
[1723120932280,38.18,156.87,156.7,12.1999]
[1723120932492,0.34,156.86,156.7,12.1999]
[1723120932781,0.34,156.86,156.63,20.0]
[1723120932782,38.18,156.78,156.63,12.1999]
[1723120932953,0.17,156.77,156.63,12.1999]
[1723120933162,0.34,156.77,156.63,12.1999]
[1723120933483,38.18,156.75,156.63,12.1999]
[1723120933685,38.18,156.72,156.56,12.2655]
[1723120933870,0.17,156.71,156.56,12.2655]
[1723120934069,79.7228,156.67,156.56,12.2655]
[1723120934287,38.18,156.63,156.5,0.3996352]
[1723120934583,6.3857,156.6,156.52,6.3889]
[1723120934766,20.0,156.66,156.5,0.3996352]
[1723120934767,38.18,156.56,156.5,0.3996352]
[1723120935283,38.18,156.53,156.5,0.3996352]
[1723120935582,38.18,156.53,156.47,6.3908]
[1723120935889,38.18,156.53,156.41,12.2369]
[1723120936080,43.19,156.56,156.34,12.7334]
[1723120936081,38.18,156.46,156.34,12.7334]
[1723120936380,34.79510968,156.52,156.33,0.8996352]
[1723120936381,38.18,156.39,156.33,0.8996352]
[1723120936600,0.17,156.45,156.33,0.8996352]
[1723120936601,38.18,156.42,156.33,0.4176088]
[1723120936762,38.18,156.4,156.33,0.4176088]
[1723120936959,38.18,156.38,156.36,6.3953]
[1723120937269,6.21289263,156.43,156.35,6.3957]
[1723120937470,38.18,156.48,156.46,6.3912]
[1723120937790,67.27538555,156.64,156.34,45.3864]
[1723120937966,43.19,156.46,156.33,0.4176088]
[1723120938681,38.18,156.42,156.27,32.2292]
[1723120938885,20.0,156.45,156.27,32.2292]
[1723120938886,38.18,156.38,156.27,32.2292]
[1723120939063,0.34,156.37,156.27,32.2292]
[1723120939259,20.0,156.45,156.27,32.2292]
[1723120939477,38.18,156.44,156.27,32.2292]
[1723120939677,38.18,156.38,156.27,32.2292]
[1723120940000,20.0,156.43,156.22,1.0100119]
[1723120940001,38.18,156.36,156.22,1.0100119]
[1723120940165,20.0,156.43,156.22,1.0100119]
[1723120940166,38.18,156.33,156.22,1.0100119]
[1723120940486,0.17,156.32,156.22,1.0100119]
[1723120940791,38.18,156.31,156.22,1.0100119]
[1723120940971,20.34,156.32,156.18,45.0212]
[1723120940972,38.18,156.27,156.18,32.5049]
[1723120941160,0.17,156.26,156.21,6.4015]
[1723120941364,38.18,156.25,156.1,12.5163]
[1723120941579,38.18,156.25,156.19,6.402]
[1723120941786,0.17,156.24,156.1,12.5163]
[1723120941995,0.17,156.24,156.15,6.4037]
[1723120942159,38.18,156.22,156.1,12.5163]
[1723120942360,38.18,156.22,156.07,32.5049]
[1723120942361,0.34,156.21,156.07,32.5049]
[1723120942889,44.5821,156.2,156.11,6.4053]
[1723120943094,0.34,156.19,156.07,32.5049]
[1723120943388,38.18,156.18,156.03,13.2689119]
[1723120943585,38.18,156.16,156.03,13.2689119]
[1723120943887,38.18,156.13,156.03,1.0100119]
[1723120944096,0.34,156.12,156.03,1.0100119]
[1723120944465,38.18,156.11,156.03,1.0100119]
[1723120944667,38.18,156.11,156.06,6.4077]
[1723120944964,38.18,156.11,156.05,6.4079]
[1723120944965,0.34,156.1,156.05,6.4079]
[1723120945167,0.34,156.1,156.03,1.0100119]
[1723120945462,6.4066,156.09,156.03,1.0100119]
[1723120945778,38.52,156.08,156.03,1.0100119]
[1723120946079,38.52,156.08,155.95,12.5663]
[1723120946080,38.18,156.04,155.95,6.412]
[1723120946286,38.18,156.02,155.9,31.4235]
[1723120946459,0.17,156.01,155.9,31.4235]
[1723120946661,0.34,156.01,155.98,6.4109]
[1723120946893,0.34,156.01,155.9,31.4235]
[1723120947100,0.34,156.01,155.99,6.4106]
[1723120947275,38.18,156.05,155.9,31.4235]
[1723120947462,8.16700947,156.08,155.9,31.4235]
[1723120947794,8.16700947,156.08,156.06,6.4077]
[1723120948160,7.78890947,156.08,156.06,6.4077]
[1723120948396,1.1046808,156.17,156.15,6.404]
[1723120948693,12.2949,156.31,156.0,21.28128165]
[1723120948861,12.2949,156.31,156.02,43.8295]
[1723120949081,6.3992,156.27,156.03,20.0]
[1723120949289,12.2949,156.31,156.03,20.0]
[1723120949290,38.18,156.28,156.04,21.28139019]
[1723120949492,38.18,156.28,156.27,6.3991]
[1723120949680,13.2402,156.38,156.29,15.9958]
[1723120949861,6.3952,156.37,156.28,6.3987]
[1723120950065,43.19,156.39,156.18,12.222]
[1723120950294,43.19,156.39,156.28,15.996]
[1723120950295,38.18,156.38,156.28,15.996]
[1723120950464,43.19,156.39,156.19,20.0]
[1723120950465,38.18,156.35,156.19,20.0]
[1723120950666,38.18,156.35,156.31,6.3975]
[1723120950866,38.18,156.35,156.29,15.9954]
[1723120951263,6.3931,156.42,156.33,6.3966]
[1723120951467,38.18,156.44,156.35,15.9892]
[1723120951676,9.20036969,156.47,156.19,40.0]
[1723120951677,6.3951,156.37,156.29,6.398]
[1723120951889,38.18,156.34,156.28,6.3985]
[1723120952191,38.18,156.34,156.32,6.3971]
[1723120952569,29.20036969,156.47,156.35,6.3958]
[1723120952766,29.20036969,156.47,156.33,15.9908]
[1723120952972,9.20036969,156.47,156.36,15.9881]
[1723120953180,6.3915,156.46,156.36,22.3832]
[1723120953496,6.3915,156.46,156.22,63.19]
[1723120953497,9.20036969,156.47,156.28,20.0]
[1723120953703,9.20036969,156.47,156.45,22.3702]
[1723120954788,9.20036969,156.47,156.36,1.27859043]
[1723120954789,9.20036969,156.47,156.43,6.3923]
[1723120954991,9.20036969,156.47,156.41,30.499]
[1723120955391,9.20036969,156.47,156.42,1.27861942]
[1723120955598,1.0100119,156.5,156.43,20.0]
[1723120955896,25.582865,156.72,156.47,20.0]
[1723120956074,25.6325,156.75,156.48,21.27764022]
[1723120956272,43.19,156.74,156.51,20.0]
[1723120956468,43.19,156.74,156.5,12.1742]
[1723120956469,43.19,156.74,156.66,6.3832]
[1723120956687,30.0,156.67,156.52,1.2770236]
[1723120956888,30.0,156.67,156.5,12.1742]
[1723120956889,81.37,156.74,156.6,15.9636]
[1723120957096,81.37,156.74,156.5,12.1742]
[1723120957097,6.383,156.67,156.58,6.3861]
[1723120957285,43.19,156.7,156.56,15.9678]
[1723120957466,49.5733,156.66,156.58,6.3864]
[1723120957671,30.0,156.65,156.59,15.9644]
[1723120958089,30.0,156.65,156.63,6.3843]
[1723120958595,0.8988373,156.73,156.53,20.0]
[1723120958596,0.8988373,156.73,156.59,30.0171]
[1723120958800,0.8988373,156.73,156.6,21.27666556]
[1723120959097,0.8988373,156.73,156.71,6.3809]
[1723120959301,0.8988373,156.73,156.7,15.9535]
[1723120959302,0.8988373,156.73,156.72,6.3808]
[1723120960177,0.8988373,156.73,156.66,15.9574]
[1723120960387,0.8988373,156.73,156.6,20.0]
[1723120960388,0.8988373,156.73,156.69,15.9547]
[1723120960589,0.8988373,156.73,156.72,6.3808]
[1723120961010,0.8988373,156.73,156.69,22.3367]
[1723120961193,0.8988373,156.73,156.69,15.9547]
[1723120961393,0.8988373,156.73,156.72,6.3808]
[1723120961593,0.8988373,156.73,156.69,22.3363]
[1723120961788,0.8988373,156.73,156.69,15.9547]
[1723120961989,0.8988373,156.73,156.72,6.3808]
[1723120962198,43.19,156.96,156.72,6.3808]
[1723120962199,6.373,156.92,156.83,6.376]
[1723120962408,6.3735,156.9,156.81,6.3771]
[1723120962590,12.0798,156.98,156.68,33.1053]
[1723120962591,38.18,156.94,156.78,15.9451]
[1723120962814,38.18,156.91,156.68,13.1053]
[1723120963109,38.18,156.81,156.7,15.9534]
[1723120963310,54.123,156.81,156.61,12.8359]
[1723120963489,38.18,156.79,156.61,12.8359]
[1723120963688,38.18,156.79,156.29,0.50705314]
[1723120963689,49.5703,156.74,156.64,22.3437]
[1723120963917,43.19,156.74,156.66,6.3831]
[1723120964210,43.19,156.74,156.7,6.3815]
[1723120964410,45.34,156.73,156.7,15.9534]
[1723120964626,45.34,156.73,156.59,30.0171]
[1723120964792,45.34,156.73,156.67,6.3825]
[1723120964988,45.34,156.73,156.66,15.9573]
[1723120965989,45.34,156.73,156.6,1.27679111]
[1723120966205,45.17,156.73,156.69,6.3819]
[1723120966409,45.17,156.73,156.68,15.9551]
[1723120966614,45.17,156.73,156.66,6.3828]
[1723120966814,30.0,156.8,156.67,15.9569]
[1723120967489,6.3792,156.76,156.67,15.9569]
[1723120967691,68.18,156.8,156.69,6.3818]
[1723120967911,43.19,156.77,156.67,15.9569]
[1723120968288,45.17,156.76,156.67,15.9569]
[1723120968498,0.17,156.75,156.67,22.3393]
[1723120968712,43.19,156.73,156.59,30.0171]
[1723120968915,45.34,156.72,156.66,6.3832]
[1723120969218,36.3812,156.71,156.63,6.3844]
[1723120969517,51.722,156.7,156.62,15.9621]
[1723120969819,43.19,156.65,156.53,12.3227]
[1723120970114,81.37,156.69,156.58,6.3863]
[1723120970115,0.17,156.64,156.58,6.3863]
[1723120970315,0.17,156.64,156.51,33.2561]
[1723120970316,0.17,156.61,156.51,33.2561]
[1723120970509,0.17,156.61,156.51,49.2286]
[1723120970699,43.36,156.61,156.51,15.9725]
[1723120971017,43.36,156.61,156.46,12.9931]
[1723120971018,0.17,156.6,156.59,6.3861]
[1723120971189,0.17,156.6,156.46,34.27105517]
[1723120971545,38.18,156.7,156.46,34.27105517]
[1723120971546,6.3825,156.68,156.6,6.3856]
[1723120971694,15.9511,156.73,156.48,1.27733213]
[1723120971900,6.3816,156.7,156.62,6.3848]
[1723120972215,43.19,156.73,156.6,15.9641]
[1723120972413,43.19,156.73,156.53,20.0]
[1723120972725,43.19,156.73,156.68,6.3823]
[1723120972899,43.19,156.73,156.62,15.9613]
[1723120973098,81.37,156.73,156.62,15.9613]
[1723120973295,57.33,156.72,156.58,31.0306]
[1723120973597,6.3812,156.71,156.64,6.384]
[1723120973794,43.19,156.73,156.64,15.9596]
[1723120973991,6.3812,156.71,156.63,6.3844]
[1723120974195,6.3811,156.72,156.64,6.3839]
[1723120974395,62.34,156.73,156.63,15.961]
[1723120974617,20.0,156.72,156.63,15.961]
[1723120974793,6.382,156.69,156.62,6.3848]
[1723120974993,6.3824,156.68,156.54,20.0]
[1723120975207,45.17,156.67,156.52,20.0]
[1723120975416,45.17,156.67,156.61,6.3852]
[1723120975615,45.17,156.67,156.59,15.9642]
[1723120975616,0.17,156.67,156.59,15.9642]
[1723120975822,0.34,156.67,156.61,6.3849]
[1723120976130,0.34,156.67,156.6,6.3856]
[1723120976308,0.34,156.67,156.59,15.9642]
[1723120976506,0.34,156.67,156.6,6.3856]
[1723120976707,0.34,156.67,156.59,15.9642]
[1723120977106,0.17,156.67,156.59,22.3499]
[1723120977300,6.3836,156.65,156.55,15.9685]
[1723120977513,83.35,156.64,156.52,15.9722]
[1723120978112,45.17,156.64,156.56,6.3872]
[1723120978313,30.0,156.63,156.51,32.9347]
[1723120978532,0.17,156.62,156.51,32.9347]
[1723120978701,0.17,156.62,156.57,6.3867]
[1723120978906,0.17,156.62,156.54,15.9701]
[1723120979103,43.19,156.66,156.51,32.9347]
[1723120979433,6.3829,156.67,156.59,22.3503]
[1723120979936,45.0,156.66,156.59,15.9643]
[1723120980231,49.5711,156.72,156.65,15.959]
[1723120980418,43.19,156.76,156.55,20.0]
[1723120980614,43.19,156.76,156.52,20.0]
[1723120980615,31.8511,156.79,156.52,1.27676822]
[1723120980817,6.382,156.69,156.61,15.9631]
[1723120981012,43.19,156.72,156.61,15.9631]
[1723120981211,6.3838,156.65,156.57,15.9664]
[1723120981437,43.19,156.68,156.6,15.9639]
[1723120981733,6.3823,156.69,156.62,6.3846]
[1723120981912,43.19,156.72,156.52,1.27719002]
[1723120982232,20.0,156.71,156.52,1.27715346]
[1723120982426,43.19,156.78,156.69,15.9545]
[1723120982932,43.19,156.78,156.71,6.3811]
[1723120983232,43.19,156.78,156.71,15.9522]
[1723120983451,36.6517,156.9,156.57,1.27654501]
[1723120983452,12.497,156.93,156.66,12.7214]
[1723120983730,2.5510452,156.96,156.71,20.0]
[1723120983731,6.3715,156.95,156.71,20.0]
[1723120983938,43.19,156.96,156.88,6.3742]
[1723120984152,43.19,156.96,156.7,63.19]
[1723120984153,43.19,156.96,156.82,6.3766]
[1723120984308,44.5534,156.91,156.81,15.9421]
[1723120984513,43.19,156.96,156.84,15.9394]
[1723120984933,6.3698,156.99,156.9,22.3063]
[1723120985234,44.6461114,157.0,156.9,15.9332]
[1723120985433,44.6461114,157.0,156.93,15.9301]
[1723120985434,1.4561114,157.0,156.93,15.9301]
[1723120985739,1.4561114,157.0,156.78,43.19]
[1723120985740,29.13459539,156.98,156.73,32.6106]
[1723120986036,15.9343,156.9,156.73,32.6106]
[1723120986237,6.3765,156.83,156.74,6.3797]
[1723120986409,38.18,156.89,156.73,32.6106]
[1723120986609,43.19,156.87,156.73,32.6106]
[1723120986820,6.5451,156.86,156.73,32.6106]
[1723120987018,45.17,156.85,156.78,15.9449]
[1723120987224,43.19,156.91,156.81,15.9421]
[1723120987423,43.19,156.96,156.74,1.27544158]
[1723120987716,43.19,156.96,156.87,15.9365]
[1723120987915,30.0,156.88,156.73,32.6106]
[1723120988446,43.19,156.87,156.75,15.9483]
[1723120988614,43.19,156.87,156.78,15.9455]
[1723120988814,6.3754,156.86,156.78,15.9455]
[1723120989022,30.0,156.84,156.74,15.9491]
[1723120989231,45.17,156.83,156.68,12.6187]
[1723120989431,0.17,156.82,156.75,6.3794]
[1723120989742,0.17,156.82,156.68,12.6187]
[1723120990036,30.0,156.8,156.76,15.9473]
[1723120990212,30.0,156.8,156.79,6.3779]
[1723120990410,30.0,156.8,156.75,15.9481]
[1723120990939,30.0,156.8,156.71,15.9521]
[1723120991124,30.0,156.8,156.75,6.3795]
[1723120991441,6.3784,156.78,156.7,15.9533]
[1723120991651,30.0,156.76,156.68,12.6187]
[1723120991938,30.0,156.76,156.75,6.3795]
[1723120992111,75.0,156.76,156.75,6.3795]
[1723120992436,6.3734,156.91,156.84,6.3758]
[1723120992647,80.394525,156.96,156.84,6.3759]
[1723120992648,30.0,156.85,156.84,6.3759]
[1723120993636,44.6461114,157.0,156.81,30.4157]
[1723120993939,6.3751,156.86,156.7,30.4157]
[1723120994112,6.3722,156.93,156.71,20.0]
[1723120994436,43.19,156.96,156.72,20.17]
[1723120994621,43.19,156.96,156.74,20.0]
[1723120994824,1.4561114,157.0,156.8,20.0]
[1723120995021,1.4561114,157.0,156.95,6.3711]
[1723120995351,1.4561114,157.0,156.86,30.4157]
[1723120995352,7.8255114,157.0,156.93,6.3722]
[1723120995636,1.4561114,157.0,156.86,30.4157]
[1723120995851,1.4561114,157.0,156.87,20.0]
[1723120996209,1.4561114,157.0,156.97,6.3705]
[1723120996438,1.4561114,157.0,156.87,20.0]
[1723120996439,1.4561114,157.0,156.96,6.3709]
[1723120996612,1.4561114,157.0,156.87,21.27426135]
[1723120996815,1.4561114,157.0,156.86,6.3751]
[1723120997014,30.0,156.97,156.9,6.3734]
[1723120997211,30.0,156.97,156.91,6.373]
[1723120997412,1.4561114,157.0,156.8,1.27468699]
[1723120997634,1.4561114,157.0,156.8,20.0]
[1723120997819,1.4561114,157.0,156.84,20.0]
[1723120998022,1.4561114,157.0,156.96,6.371]
[1723120998344,1.4561114,157.0,156.82,20.0]
[1723120998642,1.4561114,157.0,156.85,20.0]
[1723120998942,1.4561114,157.0,156.99,6.3698]
[1723120999313,12.5571,157.23,156.95,20.0]
[1723120999514,12.5571,157.23,157.08,6.3661]
[1723120999515,6.3633,157.16,157.08,6.3661]
[1723120999838,6.3613,157.2,157.0,20.0]
[1723121000034,6.3621,157.18,157.09,6.3654]
[1723121000330,9.97314256,157.21,156.94,0.17]
[1723121000531,15.9056,157.18,156.94,20.0]
[1723121000719,19.94628456,157.21,157.08,6.3659]
[1723121000914,6.3634,157.15,156.97,1.27340464]
[1723121001145,12.0955492,157.13,156.95,1.27346652]
[1723121001322,5.7314492,157.13,156.96,20.0]
[1723121001721,20.0,157.12,156.96,4.80782542]
[1723121001925,30.0,157.09,156.93,12.0036]
[1723121002552,36.3658,157.09,157.01,6.369]
[1723121002719,30.0,157.09,157.02,6.3684]
[1723121002921,6.5362,157.08,156.93,12.0036]
[1723121003140,5.7314492,157.13,157.03,6.3678]
[1723121003323,6.365,157.11,156.94,20.0]
[1723121003626,6.3674,157.05,156.93,12.0036]
[1723121003812,6.3678,157.04,156.95,6.371]
[1723121004018,38.18,157.07,156.85,12.4629]
[1723121004220,30.0,157.02,156.85,12.4629]
[1723121004418,0.17,157.01,156.95,6.3713]
[1723121004718,6.3708,156.97,156.89,6.3735]
[1723121004924,45.34,156.96,156.92,6.3726]
[1723121005139,30.0,156.95,156.84,33.95145789]
[1723121005443,0.17,156.96,156.95,6.3714]
[1723121005626,5.7314492,157.13,156.85,41.274519]
[1723121005938,38.18,157.09,156.85,20.0]
[1723121006144,38.18,157.04,156.94,6.3718]
[1723121006318,38.18,157.02,156.95,6.3712]
[1723121006515,38.18,157.02,156.86,20.0]
[1723121006719,38.18,157.02,156.84,52.6768]
[1723121006720,38.18,156.99,156.85,20.0]
[1723121006939,56.0786,157.07,156.86,1.27454149]
[1723121006940,38.18,157.06,156.86,1.27454149]
[1723121007118,38.18,157.03,156.86,21.27454149]
[1723121007323,45.17,157.02,156.86,21.27454149]
[1723121007549,15.9136,157.1,156.8,43.19]
[1723121007550,63.64342058,157.3,156.96,43.5768]
[1723121007845,6.3649,157.11,157.03,6.3681]
[1723121008027,38.18,157.1,157.03,6.3681]
[1723121008353,15.9102,157.14,156.96,43.5768]
[1723121008354,38.18,157.08,157.01,6.3687]
[1723121008548,38.18,157.08,157.03,6.368]
[1723121008921,38.18,157.12,157.06,6.3669]
[1723121009121,38.18,157.12,156.96,63.5768]
[1723121009344,6.3619,157.19,156.97,41.27341376]
[1723121009547,12.6043,157.23,156.99,40.0]
[1723121009720,18.9647,157.23,157.12,6.3645]
[1723121009917,6.3584,157.28,157.12,26.3645]
[1723121010141,39.6361114,157.27,157.12,6.3645]
[1723121010423,6.3633,157.16,156.99,20.0]
[1723121010729,6.3622,157.18,157.0,20.0]
[1723121011040,38.18,157.18,157.0,20.0]
[1723121011240,38.18,157.18,156.96,43.5768]
[1723121011422,38.18,157.18,156.96,44.85049476]
[1723121011622,6.3637,157.15,157.07,6.3662]
[1723121011845,38.18,157.18,156.96,44.8503192]
[1723121012026,38.18,157.18,156.96,43.5768]
[1723121012232,45.34,157.12,156.96,43.5768]
[1723121012721,45.34,157.12,157.08,6.3661]
[1723121012925,0.34,157.12,156.97,20.0]
[1723121013257,0.17,157.12,157.11,6.3649]
[1723121013433,40.54374447,157.26,157.01,40.0]
[1723121013632,6.361,157.21,157.01,52.3342]
[1723121013951,6.3606,157.22,157.14,6.3634]
[1723121014321,9.97024447,157.26,157.05,20.0]
[1723121014550,6.3595,157.25,157.17,6.3624]
[1723121014849,7.8147114,157.27,157.07,20.0]
[1723121015051,1.4561114,157.27,157.09,13.2517]
[1723121015246,6.3594,157.25,157.18,6.362]
[1723121015653,6.3593,157.25,157.18,6.3618]
[1723121016056,6.3589,157.26,157.18,6.3618]
[1723121016351,6.3601,157.23,157.16,6.3629]
[1723121016648,6.3607,157.22,157.1,50.1874]
[1723121016853,1.4561114,157.27,157.14,6.3636]
[1723121017060,38.18,157.25,157.1,50.1874]
[1723121017259,64.32,157.24,157.16,6.3628]
[1723121017546,0.17,157.23,157.16,6.3628]
[1723121017756,0.17,157.23,157.17,6.3623]
[1723121017928,0.17,157.23,157.16,6.3627]
[1723121018135,0.17,157.23,157.02,32.7834]
[1723121018336,43.19,157.2,157.1,6.3653]
[1723121018530,43.19,157.2,157.1,6.365]
[1723121018531,6.3621,157.18,157.1,6.365]
[1723121018828,45.34,157.17,157.02,45.1445]
[1723121019230,45.34,157.17,157.1,6.3653]
[1723121019654,45.34,157.17,157.11,6.3648]
[1723121019948,38.18,157.16,157.02,45.1445]
[1723121020153,45.34,157.17,157.02,45.1445]
[1723121020154,38.18,157.14,157.02,45.1445]
[1723121020355,19.15,157.21,157.02,65.1445]
[1723121020536,6.3613,157.2,157.02,65.1445]
[1723121020736,38.18,157.2,157.02,65.1445]
[1723121020946,38.18,157.14,157.02,45.1445]
[1723121021357,38.18,157.14,157.09,6.3656]
[1723121021537,38.18,157.14,157.02,45.1445]
[1723121021740,0.17,157.13,157.07,6.3662]
[1723121022044,38.18,157.12,157.02,45.1445]
[1723121022237,83.52,157.11,157.07,6.3662]
[1723121022453,83.52,157.11,157.02,45.1445]
[1723121022454,6.3659,157.09,157.02,6.3682]
[1723121022672,0.17,157.1,157.01,6.3689]